[Event "*** Titled Tuesday 3|2 Blitz"]
[Site "Chess.com"]
[Date "2015.08.04"]
[Round "5"]
[White "zmaj23"]
[Black "Genghis_K"]
[Result "0-1"]
[WhiteElo "2493"]
[BlackElo "2583"]
[TimeControl "180+2"]
[EndTime "12:37:53 PDT"]
[Termination "Genghis_K won by resignation"]

1. e4 {[%clk 0:03:01.9]} 1... e5 {[%clk 0:02:59.1]} 2. Nf3 {[%clk 0:03:01.5]}
2... Nc6 {[%clk 0:02:53.4]} 3. Bb5 {[%clk 0:03:03]} 3... a6 {[%clk 0:02:53.2]}
4. Ba4 {[%clk 0:03:03.9]} 4... Nf6 {[%clk 0:02:54.7]} 5. O-O {[%clk 0:03:04.9]}
5... b5 {[%clk 0:02:55.8]} 6. Bb3 {[%clk 0:03:05.8]} 6... Bc5 {[%clk 0:02:57.5]}
7. a4 {[%clk 0:03:03.9]} 7... Rb8 {[%clk 0:02:58.6]} 8. axb5 {[%clk 0:03:04.7]}
8... axb5 {[%clk 0:02:59.5]} 9. d3 {[%clk 0:03:05.4]} 9... O-O {[%clk
0:02:55.7]} 10. c3 {[%clk 0:03:05.2]} 10... d6 {[%clk 0:02:49.4]} 11. Bg5 {[%clk
0:03:05.1]} 11... h6 {[%clk 0:02:50.6]} 12. Bh4 {[%clk 0:03:05.3]} 12... g5
{[%clk 0:02:48.4]} 13. Bg3 {[%clk 0:03:06]} 13... Bb6 {[%clk 0:02:43.5]} 14.
Nbd2 {[%clk 0:03:05.9]} 14... Kg7 {[%clk 0:02:34.3]} 15. h4 {[%clk 0:03:04.7]}
15... Bg4 {[%clk 0:02:33.4]} 16. Qe2 {[%clk 0:02:37.5]} 16... Nh5 {[%clk
0:02:31.6]} 17. Bh2 {[%clk 0:02:34.8]} 17... Nf4 {[%clk 0:02:30.6]} 18. Bxf4
{[%clk 0:02:32.1]} 18... gxf4 {[%clk 0:02:32.5]} 19. Rfe1 {[%clk 0:02:01.6]}
19... Qf6 {[%clk 0:02:26.8]} 20. Bc2 {[%clk 0:01:58]} 20... Kh8 {[%clk
0:02:24.7]} 21. b4 {[%clk 0:01:56.1]} 21... Rg8 {[%clk 0:02:25.5]} 22. Kh1
{[%clk 0:01:55]} 22... Rg7 {[%clk 0:02:24.7]} 23. Rg1 {[%clk 0:01:53.2]} 23...
Rbg8 {[%clk 0:02:22.7]} 24. Rae1 {[%clk 0:01:45.2]} 24... Bh5 {[%clk 0:02:21.9]}
25. Bb3 {[%clk 0:01:42.6]} 25... Rg4 {[%clk 0:02:05.8]} 26. Nf1 {[%clk 0:01:23]}
26... Rxh4+ {[%clk 0:01:56]} 27. N1h2 {[%clk 0:01:22.3]} 27... Rgg4 {[%clk
0:01:37.2]} 28. Qa2 {[%clk 0:01:15.4]} 28... Rg3 {[%clk 0:01:26]} 29. Nxh4
{[%clk 0:01:10.3]} 29... Qxh4 {[%clk 0:01:27.5]} 30. Bd1 {[%clk 0:00:59.5]}
30... Rg5 {[%clk 0:01:17.1]} 31. g3 {[%clk 0:00:54.1]} 31... Qh3 {[%clk
0:01:14.5]} 32. Qa8+ {[%clk 0:00:47.8]} 32... Kg7 {[%clk 0:01:12.4]} 33. gxf4
{[%clk 0:00:40.2]} 33... exf4 {[%clk 0:00:49.2]} 34. Bxh5 {[%clk 0:00:35.6]}
34... Bxf2 {[%clk 0:00:41.3]} 35. Rxg5+ {[%clk 0:00:34.3]} 35... hxg5 {[%clk
0:00:42.7]} 36. Qxc6 {[%clk 0:00:31.1]} 36... Bxe1 {[%clk 0:00:42.5]} 37. Bg4
{[%clk 0:00:31.8]} 37... Qxd3 {[%clk 0:00:41.1]} 38. Qxc7 {[%clk 0:00:31.6]}
38... Bg3 {[%clk 0:00:30.4]} 39. Qa7 {[%clk 0:00:23.7]} 39... Bxh2 {[%clk
0:00:25.9]} 40. Qd4+ {[%clk 0:00:23.8]} 40... Qxd4 {[%clk 0:00:22.5]} 41. cxd4
{[%clk 0:00:25.7]} 41... Bg3 {[%clk 0:00:24.1]} 42. Kg2 {[%clk 0:00:25.6]} 42...
Be1 {[%clk 0:00:24.6]} 43. Be2 {[%clk 0:00:25.5]} 43... Bxb4 {[%clk 0:00:25.6]}
44. Bxb5 {[%clk 0:00:26.7]} 44... Bc3 {[%clk 0:00:24.3]} 45. d5 {[%clk
0:00:25.9]} 45... f5 {[%clk 0:00:12.7]} 46. Kf3 {[%clk 0:00:24.8]} 46... fxe4+
{[%clk 0:00:07.2]} 47. Kxe4 {[%clk 0:00:25.5]} 47... Kg6 {[%clk 0:00:06.2]} 48.
Bd7 {[%clk 0:00:26.4]} 48... Kh5 {[%clk 0:00:07.3]} 49. Kf3 {[%clk 0:00:23.9]}
49... Be5 {[%clk 0:00:08.9]} 50. Bg4+ {[%clk 0:00:24.5]} 50... Kg6 {[%clk
0:00:10.8]} 51. Be6 {[%clk 0:00:25.6]} 51... Kf6 {[%clk 0:00:12.7]} 52. Bg4
{[%clk 0:00:26.7]} 52... Ke7 {[%clk 0:00:14.6]} 53. Be6 {[%clk 0:00:27.3]} 53...
Kd8 {[%clk 0:00:14.3]} 54. Bg4 {[%clk 0:00:28.3]} 54... Bf6 {[%clk 0:00:16.2]}
55. Be6 {[%clk 0:00:29.5]} 55... Kc7 {[%clk 0:00:18.1]} 56. Bg4 {[%clk
0:00:30.5]} 56... Kb6 {[%clk 0:00:20]} 57. Be6 {[%clk 0:00:31.7]} 57... Kc5
{[%clk 0:00:21.9]} 58. Bf7 {[%clk 0:00:32.2]} 58... Kd4 {[%clk 0:00:23.3]} 59.
Be6 {[%clk 0:00:33.2]} 59... Be7 {[%clk 0:00:24.7]} 60. Bf7 {[%clk 0:00:34.3]}
60... Ke5 {[%clk 0:00:19.9]} 61. Be6 {[%clk 0:00:34.3]} 61... Bd8 {[%clk
0:00:21.2]} 62. Bg8 {[%clk 0:00:35.1]} 62... g4+ {[%clk 0:00:20.3]} 63. Kxg4
{[%clk 0:00:35]} 63... Ke4 {[%clk 0:00:21.8]} 64. Kh3 {[%clk 0:00:10.2]} 64...
f3 {[%clk 0:00:18.7]} 65. Kh2 {[%clk 0:00:07.8]} 65... Ke3 {[%clk 0:00:17.3]}
66. Be6 {[%clk 0:00:08.9]} 66... f2 {[%clk 0:00:14]} 67. Bh3 {[%clk 0:00:04.6]}
67... Ke2 {[%clk 0:00:15.1]} 68. Kg3 {[%clk 0:00:05.6]} 68... f1=Q {[%clk
0:00:16.2]} 69. Bxf1+ {[%clk 0:00:07.1]} 69... Kxf1 {[%clk 0:00:17.8]} 70. Kf4
{[%clk 0:00:09]} 70... Bf6 {[%clk 0:00:19.2]} 71. Kf5 {[%clk 0:00:10.9]} 71...
Be5 {[%clk 0:00:21.1]} 72. Ke6 {[%clk 0:00:12.5]} 72... Ke2 {[%clk 0:00:22.6]}
0-1

[Event "*** Titled Tuesday 3|2 Blitz"]
[Site "Chess.com"]
[Date "2015.08.04"]
[Round "5"]
[White "rhungaski"]
[Black "Quinten94"]
[Result "0-1"]
[WhiteElo "2469"]
[BlackElo "2280"]
[TimeControl "180+2"]
[EndTime "12:39:30 PDT"]
[Termination "Quinten94 won by resignation"]

1. e4 {[%clk 0:03:01.9]} 1... c6 {[%clk 0:02:59.7]} 2. d4 {[%clk 0:03:01.1]}
2... d5 {[%clk 0:03:00.7]} 3. exd5 {[%clk 0:03:02.1]} 3... cxd5 {[%clk
0:03:01.4]} 4. c4 {[%clk 0:03:04]} 4... Nf6 {[%clk 0:03:02.6]} 5. Nc3 {[%clk
0:03:03.7]} 5... e6 {[%clk 0:03:01.8]} 6. Nf3 {[%clk 0:03:01.4]} 6... Bb4 {[%clk
0:03:03.4]} 7. cxd5 {[%clk 0:02:57.8]} 7... Nxd5 {[%clk 0:03:04]} 8. Qc2 {[%clk
0:02:59.3]} 8... Nc6 {[%clk 0:03:04]} 9. Bd3 {[%clk 0:02:59]} 9... Ba5 {[%clk
0:03:05]} 10. a3 {[%clk 0:02:59.9]} 10... h6 {[%clk 0:03:04.7]} 11. O-O {[%clk
0:02:59.8]} 11... O-O {[%clk 0:03:03.4]} 12. Ne4 {[%clk 0:02:59.2]} 12... Bb6
{[%clk 0:03:01.8]} 13. Nc5 {[%clk 0:02:54.7]} 13... Qe7 {[%clk 0:02:57.6]} 14.
Be3 {[%clk 0:02:50.6]} 14... Nxe3 {[%clk 0:02:54.8]} 15. fxe3 {[%clk 0:02:52.5]}
15... e5 {[%clk 0:02:56.3]} 16. Rae1 {[%clk 0:02:48]} 16... Bg4 {[%clk
0:02:54.5]} 17. b4 {[%clk 0:02:46.4]} 17... Bxf3 {[%clk 0:02:51.9]} 18. gxf3
{[%clk 0:02:36.9]} 18... exd4 {[%clk 0:02:51.2]} 19. e4 {[%clk 0:02:37.4]} 19...
Qg5+ {[%clk 0:02:46.8]} 20. Kh1 {[%clk 0:02:37.5]} 20... Bxc5 {[%clk 0:02:41.5]}
21. f4 {[%clk 0:02:33.4]} 21... Qh4 {[%clk 0:02:30.1]} 22. Qxc5 {[%clk
0:02:26.8]} 22... Rad8 {[%clk 0:02:27.9]} 23. e5 {[%clk 0:02:27]} 23... Ne7
{[%clk 0:02:26.9]} 24. Rd1 {[%clk 0:01:51.6]} 24... b6 {[%clk 0:02:23.5]} 25.
Qc4 {[%clk 0:01:39.4]} 25... Kh8 {[%clk 0:01:55.6]} 26. Be4 {[%clk 0:01:33.8]}
26... Qh3 {[%clk 0:01:26.4]} 27. Rf3 {[%clk 0:01:27.6]} 27... Qh4 {[%clk
0:01:27.1]} 28. Rff1 {[%clk 0:01:19.4]} 28... Qh3 {[%clk 0:01:19.4]} 29. Qd3
{[%clk 0:01:06.9]} 29... Qxd3 {[%clk 0:01:11.6]} 30. Rxd3 {[%clk 0:01:08.8]}
30... f5 {[%clk 0:01:02.7]} 31. Bf3 {[%clk 0:01:01.6]} 31... Rd7 {[%clk
0:01:00]} 32. Rfd1 {[%clk 0:00:52.3]} 32... Rfd8 {[%clk 0:00:57.4]} 33. b5
{[%clk 0:00:46.2]} 33... Ng6 {[%clk 0:00:57.3]} 34. Bc6 {[%clk 0:00:43.7]} 34...
Nxf4 {[%clk 0:00:53.9]} 35. Rf3 {[%clk 0:00:42.5]} 35... g5 {[%clk 0:00:50.9]}
36. Bxd7 {[%clk 0:00:39.8]} 36... Rxd7 {[%clk 0:00:51.7]} 37. h4 {[%clk
0:00:41.2]} 37... Kg7 {[%clk 0:00:47.2]} 38. hxg5 {[%clk 0:00:30.8]} 38... hxg5
{[%clk 0:00:47.8]} 39. e6 {[%clk 0:00:32.2]} 39... Rd6 {[%clk 0:00:41.1]} 40.
Rff1 {[%clk 0:00:12]} 40... Kf6 {[%clk 0:00:39.2]} 41. e7 {[%clk 0:00:13]} 41...
Kxe7 {[%clk 0:00:39.3]} 42. Rfe1+ {[%clk 0:00:14.6]} 42... Kf6 {[%clk
0:00:38.8]} 43. Kg1 {[%clk 0:00:16.1]} 43... d3 {[%clk 0:00:38.7]} 44. Kf2
{[%clk 0:00:17.2]} 44... g4 {[%clk 0:00:34.8]} 45. Re8 {[%clk 0:00:18.3]} 45...
Kg5 {[%clk 0:00:30.1]} 46. Rg8+ {[%clk 0:00:18.4]} 46... Ng6 {[%clk 0:00:31.6]}
47. Rg7 {[%clk 0:00:16.8]} 47... f4 {[%clk 0:00:30.5]} 48. Rxa7 {[%clk
0:00:16.7]} 48... g3+ {[%clk 0:00:30.9]} 49. Kf3 {[%clk 0:00:17.7]} 49... Nh4+
{[%clk 0:00:27.6]} 50. Ke4 {[%clk 0:00:18.9]} 50... g2 {[%clk 0:00:25.5]} 51.
Rg7+ {[%clk 0:00:18.6]} 51... Ng6 {[%clk 0:00:23.8]} 52. Rg1 {[%clk 0:00:17.5]}
52... d2 {[%clk 0:00:24.2]} 53. Rxg2+ {[%clk 0:00:18.2]} 53... Kh6 {[%clk
0:00:16.5]} 54. R7xg6+ {[%clk 0:00:19.1]} 54... Rxg6 {[%clk 0:00:17.5]} 55. Rxd2
{[%clk 0:00:20.7]} 55... Rf6 {[%clk 0:00:18.8]} 56. Kf3 {[%clk 0:00:20.4]} 56...
Rf5 {[%clk 0:00:17.2]} 57. Rd6+ {[%clk 0:00:19.2]} 57... Kg5 {[%clk 0:00:18]}
58. a4 {[%clk 0:00:16]} 58... Rc5 {[%clk 0:00:18.9]} 59. Rxb6 {[%clk 0:00:14.3]}
59... Rc3+ {[%clk 0:00:19.8]} 60. Kf2 {[%clk 0:00:15.7]} 60... Rc2+ {[%clk
0:00:21]} 61. Kf1 {[%clk 0:00:16.3]} 61... Rc1+ {[%clk 0:00:22.3]} 62. Ke2
{[%clk 0:00:17.6]} 62... Rc2+ {[%clk 0:00:23.5]} 63. Kd3 {[%clk 0:00:18.7]}
63... Ra2 {[%clk 0:00:24.5]} 64. Ra6 {[%clk 0:00:15.3]} 64... f3 {[%clk
0:00:25.8]} 65. Ra8 {[%clk 0:00:15.9]} 65... f2 {[%clk 0:00:20.4]} 66. Rg8+
{[%clk 0:00:14.5]} 66... Kf4 {[%clk 0:00:16.6]} 67. Rf8+ {[%clk 0:00:15.2]}
67... Kg3 {[%clk 0:00:18.1]} 68. Ke3 {[%clk 0:00:16.3]} 68... Ra3+ {[%clk
0:00:17.3]} 69. Ke2 {[%clk 0:00:16.8]} 69... Ra2+ {[%clk 0:00:18.7]} 70. Ke3
{[%clk 0:00:17.5]} 70... Ra3+ {[%clk 0:00:19.6]} 71. Ke2 {[%clk 0:00:13.5]}
71... Ra2+ {[%clk 0:00:20.6]} 72. Ke3 {[%clk 0:00:14.6]} 72... Ra3+ {[%clk
0:00:21.8]} 73. Kd4 {[%clk 0:00:14.4]} 73... Rf3 {[%clk 0:00:20.7]} 74. Rxf3+
{[%clk 0:00:09.4]} 74... Kxf3 {[%clk 0:00:21.9]} 75. a5 {[%clk 0:00:10.7]} 75...
f1=Q {[%clk 0:00:22.8]} 76. Kc5 {[%clk 0:00:12.6]} 76... Qc1+ {[%clk 0:00:21.7]}
77. Kb6 {[%clk 0:00:12.9]} 77... Qe3+ {[%clk 0:00:22.2]} 78. Kc6 {[%clk
0:00:13.9]} 78... Qe6+ {[%clk 0:00:22.7]} 79. Kc5 {[%clk 0:00:12.9]} 79... Ke4
{[%clk 0:00:22.2]} 80. a6 {[%clk 0:00:13.6]} 80... Qc8+ {[%clk 0:00:23.1]} 81.
Kb6 {[%clk 0:00:13.4]} 81... Qb8+ {[%clk 0:00:24.2]} 82. Kc6 {[%clk 0:00:14.1]}
82... Qa7 {[%clk 0:00:22.5]} 83. b6 {[%clk 0:00:11.7]} 83... Qxa6 {[%clk
0:00:23.5]} 84. Kc7 {[%clk 0:00:13.6]} 84... Kd5 {[%clk 0:00:23.3]} 85. b7
{[%clk 0:00:15.5]} 85... Qc6+ {[%clk 0:00:23.6]} 86. Kb8 {[%clk 0:00:17.2]}
86... Kd6 {[%clk 0:00:18.8]} 87. Ka7 {[%clk 0:00:14.8]} 87... Qa4+ {[%clk
0:00:19.8]} 88. Kb6 {[%clk 0:00:15.5]} 88... Qb4+ {[%clk 0:00:20.4]} 89. Ka6
{[%clk 0:00:16.1]} 89... Kc7 {[%clk 0:00:20.6]} 90. b8=Q+ {[%clk 0:00:17.6]}
90... Qxb8 {[%clk 0:00:21.4]} 0-1

[Event "*** Titled Tuesday 3|2 Blitz"]
[Site "Chess.com"]
[Date "2015.08.04"]
[Round "6"]
[White "FMCouch"]
[Black "michaelk123"]
[Result "0-1"]
[WhiteElo "2130"]
[BlackElo "2046"]
[TimeControl "180+2"]
[EndTime "12:43:25 PDT"]
[Termination "michaelk123 won - game abandoned"]

1. e4 {[%clk 0:03:01.9]} 1... c5 {[%clk 0:03:01.4]} 2. Nf3 {[%clk 0:03:02.2]}
2... e6 {[%clk 0:03:02.9]} 3. c4 {[%clk 0:03:02.2]} 3... Nc6 {[%clk 0:02:59.2]}
4. Nc3 {[%clk 0:03:03.1]} 4... e5 {[%clk 0:03:00.3]} 5. Be2 {[%clk 0:03:01.4]}
5... d6 {[%clk 0:02:59.1]} 6. O-O {[%clk 0:03:02.4]} 6... g6 {[%clk 0:03:00.1]}
7. a3 {[%clk 0:03:03.9]} 7... Bg7 {[%clk 0:02:59.6]} 8. b4 {[%clk 0:03:04.9]}
8... Nge7 {[%clk 0:02:51.2]} 9. Rb1 {[%clk 0:03:04.4]} 9... O-O {[%clk
0:02:48.8]} 10. d3 {[%clk 0:03:03.2]} 10... b6 {[%clk 0:02:45.2]} 11. Nd5 {[%clk
0:02:58.9]} 11... h6 {[%clk 0:02:35.7]} 12. Bd2 {[%clk 0:02:58.7]} 12... Nd4
{[%clk 0:02:22.4]} 13. a4 {[%clk 0:02:55.7]} 13... Nxd5 {[%clk 0:02:14.8]} 14.
cxd5 {[%clk 0:02:54.1]} 14... f5 {[%clk 0:02:12.5]} 15. Nxd4 {[%clk 0:02:54.5]}
15... cxd4 {[%clk 0:02:12.2]} 16. f3 {[%clk 0:02:52.1]} 16... Bd7 {[%clk
0:02:10.7]} 17. Qb3 {[%clk 0:02:49.3]} 17... Qe7 {[%clk 0:02:01.2]} 0-1

[Event "*** Titled Tuesday 3|2 Blitz"]
[Site "Chess.com"]
[Date "2015.08.04"]
[Round "6"]
[White "Quinten94"]
[Black "Konavets"]
[Result "0-1"]
[WhiteElo "2261"]
[BlackElo "2464"]
[TimeControl "180+2"]
[EndTime "12:44:17 PDT"]
[Termination "Konavets won by resignation"]

1. e4 {[%clk 0:03:01.9]} 1... c5 {[%clk 0:03:00]} 2. Nf3 {[%clk 0:03:02.6]} 2...
e6 {[%clk 0:03:01.9]} 3. d4 {[%clk 0:03:03.5]} 3... cxd4 {[%clk 0:03:03.8]} 4.
Nxd4 {[%clk 0:03:04.3]} 4... a6 {[%clk 0:03:05.7]} 5. Be2 {[%clk 0:03:04.8]}
5... d6 {[%clk 0:03:05.8]} 6. O-O {[%clk 0:03:05.4]} 6... b5 {[%clk 0:03:05.3]}
7. a4 {[%clk 0:03:03.7]} 7... b4 {[%clk 0:03:06.4]} 8. Nd2 {[%clk 0:03:04.8]}
8... Bb7 {[%clk 0:03:07.5]} 9. Re1 {[%clk 0:02:56.1]} 9... Nd7 {[%clk
0:03:08.3]} 10. Nc4 {[%clk 0:02:54.9]} 10... Rc8 {[%clk 0:02:57.7]} 11. b3
{[%clk 0:02:42.9]} 11... Ngf6 {[%clk 0:02:55.7]} 12. Bh5 {[%clk 0:02:26.2]}
12... g6 {[%clk 0:02:46.4]} 13. Bg4 {[%clk 0:02:26.4]} 13... Ne5 {[%clk
0:02:47]} 14. Be2 {[%clk 0:02:02.6]} 14... Nxe4 {[%clk 0:02:42.8]} 15. Bb2
{[%clk 0:01:43.6]} 15... Bg7 {[%clk 0:02:24.5]} 16. f4 {[%clk 0:01:37.5]} 16...
Nxc4 {[%clk 0:02:23.2]} 17. Bxc4 {[%clk 0:01:38.4]} 17... O-O {[%clk 0:02:23.4]}
18. Nxe6 {[%clk 0:01:33.9]} 18... fxe6 {[%clk 0:02:23.8]} 19. Bxe6+ {[%clk
0:01:34.3]} 19... Kh8 {[%clk 0:02:23.6]} 20. Bxg7+ {[%clk 0:01:31.3]} 20... Kxg7
{[%clk 0:02:25.5]} 21. Qd4+ {[%clk 0:01:17.8]} 21... Qf6 {[%clk 0:02:26.2]} 22.
Qxf6+ {[%clk 0:01:16.9]} 22... Kxf6 {[%clk 0:02:28.1]} 23. Bxc8 {[%clk
0:01:15.4]} 23... Rxc8 {[%clk 0:02:30]} 24. Re2 {[%clk 0:01:16.2]} 24... h5
{[%clk 0:02:30.6]} 25. Rd1 {[%clk 0:01:16]} 25... d5 {[%clk 0:02:31.2]} 26. Rd4
{[%clk 0:01:14.1]} 26... a5 {[%clk 0:02:32.1]} 27. Kf1 {[%clk 0:01:11.8]} 27...
Ba6 {[%clk 0:02:31.8]} 0-1

[Event "*** Titled Tuesday 3|2 Blitz"]
[Site "Chess.com"]
[Date "2015.08.04"]
[Round "6"]
[White "LyonBeast"]
[Black "Tal-Baronfew"]
[Result "0-1"]
[WhiteElo "2706"]
[BlackElo "2785"]
[TimeControl "180+2"]
[EndTime "12:44:36 PDT"]
[Termination "Tal-Baronfew won by resignation"]

1. e4 {[%clk 0:03:01.6]} 1... e5 {[%clk 0:03:00.5]} 2. Nf3 {[%clk 0:03:02.2]}
2... Nc6 {[%clk 0:03:01]} 3. Bb5 {[%clk 0:03:03.2]} 3... a6 {[%clk 0:03:02.2]}
4. Ba4 {[%clk 0:03:04]} 4... Nf6 {[%clk 0:03:03.4]} 5. O-O {[%clk 0:03:05.2]}
5... Be7 {[%clk 0:03:04.6]} 6. Re1 {[%clk 0:03:05.8]} 6... b5 {[%clk 0:03:05.9]}
7. Bb3 {[%clk 0:03:07.1]} 7... d6 {[%clk 0:03:07.6]} 8. c3 {[%clk 0:03:08.4]}
8... O-O {[%clk 0:03:08.1]} 9. h3 {[%clk 0:03:09.9]} 9... Na5 {[%clk 0:03:08.5]}
10. Bc2 {[%clk 0:03:10.9]} 10... c5 {[%clk 0:03:09.8]} 11. d3 {[%clk 0:03:12.5]}
11... Nc6 {[%clk 0:03:05]} 12. Nbd2 {[%clk 0:03:13.5]} 12... h6 {[%clk
0:03:05.7]} 13. Nf1 {[%clk 0:03:14.6]} 13... Be6 {[%clk 0:03:06.7]} 14. Ne3
{[%clk 0:03:10.7]} 14... Rc8 {[%clk 0:03:07]} 15. a4 {[%clk 0:03:07.8]} 15... b4
{[%clk 0:03:06.6]} 16. Bb3 {[%clk 0:03:03.5]} 16... Na5 {[%clk 0:02:54.1]} 17.
Bxe6 {[%clk 0:02:59.8]} 17... fxe6 {[%clk 0:02:55.5]} 18. Bd2 {[%clk 0:02:58.3]}
18... bxc3 {[%clk 0:02:49.2]} 19. bxc3 {[%clk 0:02:58.2]} 19... c4 {[%clk
0:02:46]} 20. Qe2 {[%clk 0:02:46.5]} 20... cxd3 {[%clk 0:02:42]} 21. Qxd3 {[%clk
0:02:48.4]} 21... Nb3 {[%clk 0:02:40.1]} 22. Rab1 {[%clk 0:02:46.1]} 22... Nc5
{[%clk 0:02:41]} 23. Qc2 {[%clk 0:02:47.2]} 23... Nfxe4 {[%clk 0:02:38.6]} 24.
Ng4 {[%clk 0:02:45.4]} 24... h5 {[%clk 0:02:23.6]} 25. Rxe4 {[%clk 0:02:33.6]}
25... Nxe4 {[%clk 0:02:21.8]} 26. Nh6+ {[%clk 0:02:31.9]} 26... gxh6 {[%clk
0:02:18.7]} 27. Qxe4 {[%clk 0:02:33.4]} 27... Rf5 {[%clk 0:02:15.8]} 28. Bxh6
{[%clk 0:02:27.4]} 28... Qe8 {[%clk 0:02:12.5]} 29. Rb7 {[%clk 0:02:24.5]} 29...
Rb8 {[%clk 0:02:06.7]} 30. Ra7 {[%clk 0:02:09.1]} 30... d5 {[%clk 0:01:59.9]}
31. Qe2 {[%clk 0:02:02.3]} 31... e4 {[%clk 0:01:54.2]} 32. Nd4 {[%clk
0:01:59.8]} 32... Rb1+ {[%clk 0:01:51.7]} 33. Kh2 {[%clk 0:02:00.7]} 33... Qb8+
{[%clk 0:01:51.8]} 34. g3 {[%clk 0:02:02.1]} 0-1

[Event "*** Titled Tuesday 3|2 Blitz"]
[Site "Chess.com"]
[Date "2015.08.04"]
[Round "6"]
[White "Sunil"]
[Black "Carolina-moon"]
[Result "0-1"]
[WhiteElo "1862"]
[BlackElo "1988"]
[TimeControl "180+2"]
[EndTime "12:45:47 PDT"]
[Termination "Carolina-moon won by resignation"]

1. e4 {[%clk 0:02:14.1]} 1... c5 {[%clk 0:02:56]} 2. Nc3 {[%clk 0:02:14.4]} 2...
Nc6 {[%clk 0:02:54.2]} 3. f4 {[%clk 0:02:16]} 3... g6 {[%clk 0:02:52.1]} 4. Nf3
{[%clk 0:02:17.6]} 4... Bg7 {[%clk 0:02:53.1]} 5. Bc4 {[%clk 0:02:19]} 5... e6
{[%clk 0:02:54.1]} 6. f5 {[%clk 0:02:20.4]} 6... Nge7 {[%clk 0:02:54.3]} 7. fxe6
{[%clk 0:02:21.6]} 7... dxe6 {[%clk 0:02:35.6]} 8. O-O {[%clk 0:02:22.3]} 8...
O-O {[%clk 0:02:35.8]} 9. d3 {[%clk 0:02:23.8]} 9... h6 {[%clk 0:02:32.9]} 10.
Qe1 {[%clk 0:02:24.5]} 10... Nd4 {[%clk 0:02:32.1]} 11. Qh4 {[%clk 0:02:24.2]}
11... Nec6 {[%clk 0:02:20.8]} 12. Bg5 {[%clk 0:02:23.7]} 12... Nxf3+ {[%clk
0:02:18.5]} 13. Rxf3 {[%clk 0:02:24.6]} 13... Qxg5 {[%clk 0:02:17.1]} 14. Qe1
{[%clk 0:02:18.2]} 14... Bd4+ {[%clk 0:02:09.4]} 15. Kh1 {[%clk 0:02:18.3]}
15... Ne5 {[%clk 0:02:04.7]} 16. Rg3 {[%clk 0:02:18.3]} 16... Qh4 {[%clk
0:01:56.6]} 17. Ne2 {[%clk 0:02:08.5]} 17... Ng4 {[%clk 0:01:45.3]} 18. h3
{[%clk 0:02:06.6]} 18... Bf2 {[%clk 0:01:34.4]} 19. Rxg4 {[%clk 0:01:59]} 19...
Bxe1 {[%clk 0:01:35.1]} 20. Rxh4 {[%clk 0:01:35.6]} 20... Bxh4 {[%clk
0:01:35.7]} 21. Rf1 {[%clk 0:01:35.1]} 21... Kg7 {[%clk 0:01:33]} 22. Kh2 {[%clk
0:01:36]} 22... Bf6 {[%clk 0:01:32]} 23. c3 {[%clk 0:01:35.2]} 23... Be5+ {[%clk
0:01:32.3]} 24. g3 {[%clk 0:01:35.1]} 24... Bd7 {[%clk 0:01:32.8]} 25. d4 {[%clk
0:01:36.2]} 25... cxd4 {[%clk 0:01:33.5]} 26. cxd4 {[%clk 0:01:37.3]} 26... Rac8
{[%clk 0:01:32.3]} 27. Bb3 {[%clk 0:01:34.5]} 27... Bb5 {[%clk 0:01:33]} 28. Rf2
{[%clk 0:01:26.7]} 28... Bxe2 {[%clk 0:01:30]} 29. Rxe2 {[%clk 0:01:28.6]} 29...
Bxd4 {[%clk 0:01:30.1]} 30. h4 {[%clk 0:01:22.7]} 30... h5 {[%clk 0:01:30.3]}
31. Kh3 {[%clk 0:01:23.5]} 31... e5 {[%clk 0:01:29.1]} 32. Re1 {[%clk
0:01:20.4]} 32... f5 {[%clk 0:01:29.8]} 33. Re2 {[%clk 0:01:14.2]} 33... f4
{[%clk 0:01:28.2]} 0-1

[Event "*** Titled Tuesday 3|2 Blitz"]
[Site "Chess.com"]
[Date "2015.08.04"]
[Round "6"]
[White "Dlugy"]
[Black "bugsbunny444"]
[Result "1-0"]
[WhiteElo "2552"]
[BlackElo "2310"]
[TimeControl "180+2"]
[EndTime "12:46:20 PDT"]
[Termination "Dlugy won on time"]

1. d4 {[%clk 0:03:01.9]} 1... e6 {[%clk 0:03:01.4]} 2. c4 {[%clk 0:03:03]} 2...
b6 {[%clk 0:03:01.1]} 3. e4 {[%clk 0:03:03.5]} 3... Bb7 {[%clk 0:03:02.5]} 4.
Bd3 {[%clk 0:03:05]} 4... Bb4+ {[%clk 0:03:03.8]} 5. Bd2 {[%clk 0:03:05.2]} 5...
Bxd2+ {[%clk 0:03:01.8]} 6. Nxd2 {[%clk 0:03:06.8]} 6... Nc6 {[%clk 0:02:56]} 7.
Ngf3 {[%clk 0:03:07.9]} 7... Qf6 {[%clk 0:02:56.6]} 8. Nb3 {[%clk 0:03:00.8]}
8... a5 {[%clk 0:02:41]} 9. a4 {[%clk 0:03:01.7]} 9... Nge7 {[%clk 0:02:29.8]}
10. O-O {[%clk 0:03:01.9]} 10... d6 {[%clk 0:02:23.2]} 11. Re1 {[%clk
0:03:01.2]} 11... Ng6 {[%clk 0:02:15.2]} 12. c5 {[%clk 0:02:51.5]} 12... dxc5
{[%clk 0:02:09]} 13. dxc5 {[%clk 0:02:51.9]} 13... O-O {[%clk 0:02:10.5]} 14.
cxb6 {[%clk 0:02:52.6]} 14... cxb6 {[%clk 0:02:11.1]} 15. Nbd2 {[%clk
0:02:31.7]} 15... Rfd8 {[%clk 0:02:01.5]} 16. Bb5 {[%clk 0:02:26.8]} 16... Nce5
{[%clk 0:01:47.9]} 17. Qb3 {[%clk 0:02:18.4]} 17... Nf4 {[%clk 0:01:34.9]} 18.
Nxe5 {[%clk 0:02:06.6]} 18... Rxd2 {[%clk 0:01:13.1]} 19. Nd7 {[%clk 0:01:43.4]}
19... Qd4 {[%clk 0:00:30.9]} 20. Qe3 {[%clk 0:01:44.1]} 20... Qxe3 {[%clk
0:00:10.7]} 21. Rxe3 {[%clk 0:01:45.2]} 21... Rxb2 {[%clk 0:00:11.5]} 22. Nxb6
{[%clk 0:01:45.7]} 22... Rd8 {[%clk 0:00:12.7]} 23. Nc4 {[%clk 0:01:41.4]} 23...
Rb4 {[%clk 0:00:07.4]} 24. Nxa5 {[%clk 0:01:37.7]} 24... Bxe4 {[%clk 0:00:08.6]}
25. f3 {[%clk 0:01:39.1]} 25... Bd3 {[%clk 0:00:05.4]} 26. Nc6 {[%clk 0:01:38]}
26... Bxb5 {[%clk 0:00:03.9]} 27. axb5 {[%clk 0:01:36.8]} 27... Rbd4 {[%clk
0:00:02.9]} 28. Nxd4 {[%clk 0:01:37.4]} 1-0